Workbook

Sheet NSU
B1: Riikka Nieminen | E1: 12.6.1973 Jyväskylä | I1: myöh. Välilä, Sallinen | P1: Nimetty Pesäpallon kunniagalleriaan 6.8.2022
B2: SUPERPESIS | E2: Runkosarja | I2: Kärkilyönnit (KL), pesänvälit | Q2: Runkosarja | U2: Ylempi loppusarja | AC2: Runkosarja | AG2: Play off, voitot, voittoprosentti | AL2: Arvo-ottelut ja mitalit
B3: Vuosi | C3: Sija | D3: Seura | E3: OTT | F3: KUN | G3: LÖI | H3: TOI | I3: KL | J3: 0 > 1 | K3: 1 > 2 | L3: 2 > 3 | M3: 3 > k | N3: KL-% | P3: LÖI | Q3: TOI | R3: L+T | S3: KL | U3: OTT | V3: KUN | W3: LÖI | X3: TOI | Y3: KL | Z3: KL-% | AB3: LÖI | AC3: TOI | AD3: L+T | AE3: KL | AG3: Puolivälierät | AH3: Välierät | AI3: Pronssi | AJ3: Finaalit | AL3: IL | AM3: LL | AN3: hSM | AO3: K | AP3: H | AQ3: P
B4: 1988 | C4: 7. | D4: Kiri | E4: 18 | F4: 3 | G4: 14 | H4: 44 | I4: 124 | J4: 36 | K4: 45 | L4: 26 | M4: =PRODUCT(F4+G4) -> 17 | N4: ---- | Q4: 5. | R4: 10. | S4: 8.
B5: 1989 | C5: 1. | D5: Kiri | E5: 18 | F5: 4 | G5: 17 | H5: 53 | I5: 120 | J5: 47 | K5: 29 | L5: 23 | M5: =PRODUCT(F5+G5) -> 21 | N5: ---- | Q5: 1. | R5: 2. | S5: 9. | AH5: 27-11 Tahko | AJ5: 23-9 ViU | AL5: 1 | AM5: 1 | AO5: 1
B6: 1990 | C6: 4. | D6: Kiri | E6: 22 | F6: 6 | G6: 32 | H6: 68 | I6: 168 | J6: 39 | K6: 55 | L6: 36 | M6: =SUM(F6+G6) -> 38 | N6: 72.1 % | O6: =PRODUCT(I6/N6) -> 233.0097087 | Q6: 2. | R6: 7. | S6: 7. | AH6: 1-2 ViU | AI6: 11-30 Tarmo | AL6: 1 | AM6: 1
B7: 1991 | C7: 5. | D7: Kiri | E7: 17 | F7: 4 | G7: 35 | H7: 32 | I7: 89 | J7: 18 | K7: 12 | L7: 20 | M7: =SUM(F7+G7) -> 39 | N7: 63.1 % | O7: =PRODUCT(I7/N7) -> 141.0459588 | AG7: 1-2 Virkiä
B8: 1992 | C8: 1. | D8: Virkiä | E8: 21 | F8: 6 | G8: 42 | H8: 46 | I8: 157 | J8: 22 | K8: 33 | L8: 54 | M8: =SUM(F8+G8) -> 48 | N8: 80.1 % | O8: 196.0049938 | P8: 8. | Q8: 9. | R8: 2. | S8: 5. | AG8: 2-0 SiiPe | AH8: 2-0 Lippo | AJ8: 2-0 ViPa | AO8: 1
B9: 1993 | C9: 1. | D9: Virkiä | E9: 23 | F9: 8 | G9: 60 | H9: 70 | I9: 187 | J9: 21 | K9: 32 | L9: 66 | M9: =SUM(F9+G9) -> 68 | N9: 78.9 % | O9: 237.008872 | P9: 1. | Q9: 1. | R9: 1. | S9: 1. | AG9: 2-0 Tarmo | AH9: 2-1 Lippo | AJ9: 2-0 SiiPe | AO9: 1
B10: 1994 | C10: 3. | D10: ViPa | E10: 13 | F10: 5 | G10: 36 | H10: 28 | I10: 117 | J10: 11 | K10: 33 | L10: 32 | M10: 41 | N10: 81.8 % | O10: 143.0317848 | P10: 7. | R10: 7. | T10: =PRODUCT(L10/S10) ->  | AG10: 2-0 Tarmo | AH10: Mitalisarja 3. | AQ10: 1
B11: 1995 | C11: 3. | D11: Kiri | E11: 20 | F11: 8 | G11: 67 | H11: 52 | I11: 179 | J11: 20 | K11: 23 | L11: 61 | M11: 75 | N11: 74.9 % | O11: 238.9853138 | P11: 1. | Q11: 4. | R11: 1. | S11: 1. | AF11: =PRODUCT(#REF!/AE11) ->  | AG11: 3-1 Virkiä | AH11: 0-3 Lippo | AI11: 2-0 Lippo | AN11: mS | AQ11: 1
B12: 1996 | C12: 1. | D12: Kiri | E12: 2 | F12: 0 | G12: 0 | H12: 0 | I12: 2 | J12: 0 | K12: 0 | L12: 2 | M12: 0 | N12: 28.6 % | O12: 6.993006993 | AF12: =PRODUCT(#REF!/AE12) ->  | AG12: 3-0 Roihu | AH12: 3-2 ViU | AJ12: 3-2 Lippo | AO12: 1
B13: Yhteensä | E13: =SUM(E4:E12) -> 154 | F13: 44 | G13: 303 | H13: 393 | I13: 1143 | J13: 214 | K13: 262 | L13: 320 | M13: 347 | N13: =PRODUCT(899/O13) -> 75.2 % | O13: =SUM(O6:O12) -> 1196.079639 | P13: 2-0-0 | Q13: 2-1-0 | R13: 2-2-0 | S13: 2-0-0 | U13: =SUM(U4:U12) -> 0 | V13: 0 | W13: 0 | X13: 0 | Y13: 0 | AA13: =SUM(#REF!) ->  | AB13: 0-0-0 | AC13: 0-0-0 | AD13: 0-0-0 | AE13: 0-0-0 | AG13: 5/6 83% | AH13: 4/6 67% | AI13: 1/2 50% | AJ13: 4/4 100% | AL13: 2 | AM13: 2 | AN13: 0 | AO13: =SUM(AO4:AO12) -> 4 | AP13: =SUM(AP4:AP12) -> 0 | AQ13: =SUM(AQ4:AQ12) -> 2
B14: Pesispörssi | D14: =SUM(F13:H13)+((I13-F13-G13)/3)+(E13/3)+(AL13*25)+(AM13*25)+(AN13*10)+(AO13*25)+(AP13*20)+(AQ13*15)-25+10 -> 1271.7
B16: URA SUPERISSA | E16: OTT | F16: KUN | G16: LÖI | H16: TOI | I16: KL | K16: ka/L | L16: ka/T | M16: ka/KL | N16: K - % | P16: ENSIMMÄISET RUNKOSARJASSA
B17: Runkosarja | E17: =PRODUCT(E13) -> 154 | F17: =PRODUCT(F13) -> 44 | G17: =PRODUCT(G13) -> 303 | H17: =PRODUCT(H13) -> 393 | I17: =PRODUCT(I13) -> 1143 | K17: =PRODUCT((F17+G17)/E17) -> 2.25 | L17: =PRODUCT(H17/E17) -> 2.55 | M17: =PRODUCT(I17/E17) -> 7.42 | N17: =PRODUCT(N13) -> 75.2 % | O17: =PRODUCT(O13) -> 1196.079639 | P17: Ottelu | R17: 08.05. 1988 Tarmo - Kiri 23-5 | Y17: 1. ottelu | AB17: 14 v 10 kk 26 pv
B18: Ylempi loppusarja | P18: Lyöty
B19: Alempi loppusarja | P19: Tuotu
B20: KAIKKI | E20: =SUM(E17:E19) -> 154 | F20: =SUM(F17:F19) -> 44 | G20: =SUM(G17:G19) -> 303 | H20: =SUM(H17:H19) -> 393 | I20: =SUM(I17:I19) -> 1143 | K20: =PRODUCT((F20+G20)/E20) -> 2.25 | L20: =PRODUCT(H20/E20) -> 2.55 | M20: =PRODUCT(I20/E20) -> 7.42 | O20: =SUM(O17:O19) -> 1196.079639 | P20: Kunnari
B22: Vuoden pesäpalloilija 1989, 1992, 1993 <> Lyöjäkuningatar 1993, 1995 <> Etenijäkuningatar 1989, 1993 <> Tehopelaaja 1993, 1995 <> Kärkilyöjäkuningatar 1993, 1995 <> Kultainen maila 1993, 1995 <> Kultainen räpylä 1993 <> Paras kärkilyöntiprosentti 1992, 1993, 1994
B24: Seurat | D24: Kiri = Jyväskylän Kiri (1930), kasvattajaseura
D25: Virkiä = Lapuan Virkiä (1907)
D26: ViPa = Vihdin Pallo (1967)

Sheet Arvo-ottelut
B1: ITÄ - LÄNSI - KORTTI
B2: Riikka Nieminen | C2: 12.6.1973 Jyväskylä
B3: NAISET | C3: Itä - Länsi, tulos | D3: Joukkue | E3: Seura | G3: V | H3: T | I3: H | J3: Up. | K3: Lj. | L3: Palk. | M3: O | N3: K | O3: L | P3: T | Q3: KL | R3: 1 | S3: 2 | T3: 3 | U3: k | V3: KL-% | W3: Pelinjohtaja | X3: Yleisöä
B4: 22.07. 1989 Viinijärvi | C4: 8-5 | D4: Itä | E4: Kiri | G4: 1 | K4: jok | M4: 1 | Q4: 0/0 | V4: ---- | W4: Jouni Vatanen | X4: 2076
B5: 12.08. 1990 Ulvila | C5: 10-1 | D5: Itä | E5: Kiri | G5: 1 | J5: 2v | K5: 3 | M5: 1 | N5: 1 | O5: 2 | P5: 4 | Q5: 11/12 | S5: 4/4 | T5: 4/5 | U5: 3/3 | V5: 91.7 % | W5: Ali Lindström | X5: 2783
B6: Yhteensä | G6: =SUM(G4:G5) -> 2 | M6: =SUM(M4:M5) -> 2 | N6: 1 | O6: 2 | P6: 4 | Q6: 11/12 | S6: 4/4 | T6: 4/5 | U6: 3/3 | V6: 91.7 %
B7: Ikä ensimmäisessä ottelussa | C7: 16 v 1 kk 10 pv
B9: B-TYTÖT | C9: Itä - Länsi, tulos | D9: Joukkue | E9: Seura | G9: V | H9: T | I9: H | J9: Up. | K9: Lj. | L9: Palk. | M9: O | N9: K | O9: L | P9: T | Q9: KL | R9: 1 | S9: 2 | T9: 3 | U9: k | V9: KL-% | W9: Pelinjohtaja | X9: Yleisöä
B10: 06.07. 1989 Kemi | C10: 11-6 | D10: Itä | E10: Kiri | G10: 1 | J10: 2k | K10: 2 | M10: 1 | O10: 1 | P10: 4 | Q10: 7/8 | R10: 2/2 | S10: 3/3 | T10: 1/1 | U10: 1/2 | V10: 87.5 % | W10: Riitta Jalonen | X10: 1000
B11: 07.07. 1990 Vihti | C11: 4-9 | D11: Itä | E11: Kiri | I11: 1 | J11: 2p | K11: 4 | L11: I p | M11: 1 | N11: 1 | O11: 1 | P11: 2 | Q11: 5/6 | R11: 1/1 | S11: 2/3 | U11: 2/2 | V11: 83.3 % | W11: Petri Kaijansinkko | X11: 111
B12: Yhteensä | G12: =SUM(G10:G11) -> 1 | I12: 1 | M12: =SUM(M10:M11) -> 2 | N12: 1 | O12: 2 | P12: 6 | Q12: 12/14 | R12: 3/3 | S12: 5/6 | T12: 1/1 | U12: 3/4 | V12: 85.7 %
B14: LIITTO - LEHDISTÖ - KORTTI
B15: NAISET | C15: Tulos | D15: Joukkue | E15: Seura | G15: V | H15: T | I15: H | J15: Up. | K15: Lj. | L15: Palk. | M15: O | N15: K | O15: L | P15: T | Q15: KL | R15: 1 | S15: 2 | T15: 3 | U15: k | V15: KL-% | W15: Pelinjohtaja | X15: Yleisöä
B16: 18.06. 1989 Vimpeli | C16: 7-13 | D16: Liitto | E16: Kiri | I16: 1 | J16: 2k | K16: 1 | M16: 1 | O16: 2 | P16: 2 | Q16: 4/8 | R16: 2/2 | S16: 0/2 | T16: 0/1 | U16: 2/3 | V16: 50.0 % | W16: Petri Kaijansinkko | X16: 725
B17: 16.06. 1990 Ikaalinen | C17: 1-2 | D17: Liitto | E17: Kiri | I17: 1 | J17: 3v | K17: 8 | L17: II p | M17: 1 | Q17: 0/3 | R17: 0/2 | T17: 0/1 | V17: 0.0 % | W17: Markku Lähteenmäki | X17: 350
B18: Yhteensä | I18: =SUM(I16:I17) -> 2 | M18: =SUM(M16:M17) -> 2 | O18: 2 | P18: 2 | Q18: 4/11 | R18: 2/4 | S18: 0/2 | T18: 0/2 | U18: 2/3 | V18: 36.4 %
B19: Ikä ensimmäisessä ottelussa | C19: 16 v 0 kk 6 pv
